Cogmind - Beta 16.1 *** ADVENTURER MODE // 2026.02.21 @ 16:33:15 Player: PokeYourWaffle Result: Destroyed by 5R-W1Q(R) with Subdweller Beam Cannon Performance ------------- Evolutions (0) 0 Regions Visited (2) 400 Robots Destroyed (10) 50 Value Destroyed (264) 264 Prototype IDs (0) 0 Alien Tech Used (0) 0 Bonus (0) 0 TOTAL SCORE: 714 Bonus ------- None Cogmind --------- Core Integrity 0/250 Matter 280/300 Energy 75/100 System Corruption 0% Temperature Cool (9) Movement Core (400) Ox7 Location -10/Subcaves Parts ------- > --- POWER (1) -------- (None) > --- PROPULSION (2) --- (None) > --- UTILITY (2) ------ Large Storage Unit > --- WEAPON (2) ------- Particle Gun > --- INVENTORY (15) --- Light Ion Engine Light Ion Engine Subdweller Power Source Aluminum Leg Aluminum Leg Aluminum Leg Wheel Heat Sink ECM Suite Peak State ------------ > --- POWER ------------ (None) > --- PROPULSION ------- Aluminum Leg > --- UTILITY ---------- Large Storage Unit > --- WEAPON ----------- Particle Gun Dirty Datajack > --- INVENTORY -------- Light Ion Engine Light Ion Engine Subdweller Power Source Aluminum Leg Aluminum Leg Aluminum Leg Wheel Heat Sink ECM Suite [Rating: 11] Favorites ----------- Power Light Nuclear Core Power Core Light Nuclear Core Propulsion Aluminum Leg Leg Aluminum Leg Utility Large Storage Unit Device Terrain Scanner Storage Large Storage Unit Processor Improved Targeting Computer Weapon EM Pulse Gun Energy Gun EM Pulse Gun Ballistic Gun Light Assault Rifle Special Melee Weapon Dirty Datajack Build | -11 -10 -10 ------- Run | Yrd Mat Sub Slots Evolved . | . . . Power . | . . . Propulsion . | . . . Utility . | . . . Weapon . | . . . Parts Attached 12 | 5 4 3 Power 1 | . 1 . Engine . | . . . Core 1 | . 1 . Reactor . | . . . Propulsion 2 | 2 . . Treads . | . . . Leg 2 | 2 . . Wheel . | . . . Hover . | . . . Flight . | . . . Utility 4 | 1 3 . Device 1 | . 1 . Storage 2 | 1 1 . Processor 1 | . 1 . Hackware . | . . . Protection . | . . . Artifact . | . . . Weapon 5 | 2 . 3 Energy Gun 3 | 2 . 1 Energy Cannon . | . . . Ballistic Gun 1 | . . 1 Ballistic Cannon . | . . . Launcher . | . . . Special Weapon . | . . . Impact Weapon . | . . . Slashing Weapon . | . . . Piercing Weapon . | . . . Special Melee Weapon 1 | . . 1 Unidentified Prototypes . | . . . Parts Lost 8 | . . 8 Power 1 | . . 1 Propulsion 2 | . . 2 Utility 1 | . . 1 Weapon 4 | . . 4 Highest Loss Streak 8 | . . 8 To Critical Strikes . | . . . Average Backups 8 | 3 6 10 Power 2 | 1 2 2 Propulsion 3 | 1 2 4 Utility 1 | . . 2 Weapon 1 | 1 1 1 Tool/Special . | . . . Unused Backups 10 | . 1 9 Power 3 | . . 3 Propulsion 4 | . . 4 Utility 3 | . 1 2 Weapon . | . . . Tool/Special . | . . . Average Slot Usage (%) 93 | . 90 96 Core 10 | . 7 13 Leg 27 | . 28 26 Device 11 | . 9 12 Storage 14 | . 14 14 Energy Gun 27 | . 28 26 Peak Build Rating 11 | 5 10 11 Average Rating 8 | 2 7 9 On Entrance 5 | . 5 10 Avg Prop Armor Cover (%) . | . . . Naked Turns . | . . . Heaviest Build 29 | 8 29 29 Greatest Support 20 | 20 20 20 Greatest Overweight (x) 1 | . 1 1 Average Overweight (x) . | . . 1 Largest Inventory Capacity 15 | 8 15 15 Average Capacity 14 | 6 14 15 Most Carried 12 | 6 10 12 Average Carried 8 | 4 6 10 Final Capacity 15 | 8 15 15 Final Carried 10 | 4 10 9 Class Distribution -------------------- 100% | Mutant Dominant Class ---------------- Mutant | -10/Materials Mutant | -10/Subcaves Resources | -11 -10 -10 ----------- Run | Yrd Mat Sub Matter Collected 290 | 202 88 . Remotely . | . . . Salvage Created 338 | . 278 60 Parts 20 | . 18 2 Haulers Intercepted . | . . . Recyclers Shooed . | . . . Parts Field Recycled . | . . . Retrieved Matter . | . . . Parts Self-Destructed 8 | . . 8 Prevented . | . . . Parts Restored . | . . . Kills | -11 -10 -10 ------- Run | Yrd Mat Sub Combat Hostiles Destroyed 8 | . 7 1 Guns 8 | . 7 1 Classes Destroyed 4 | . 3 1 Watcher 2 | . 2 . Swarmer 3 | . 3 . Grunt 4 | . 4 . Subdweller 1 | . . 1 Best Kill Streak 3 | . 3 1 Combat Bots Only 3 | . 3 1 Max Kills in Single Turn 1 | . 1 1 Gunslinging . | . . . Exploded . | . . . Melee . | . . . Uniques/NPCs Destroyed . | . . . Combat | -11 -10 -10 -------- Run | Yrd Mat Sub Hostile Shots Fired 78 | . 35 43 Missed 20 | . 5 15 Hits 58 | . 30 28 Projectile 58 | . 30 28 Damage Taken 809 | . 239 570 Core 259 | . 63 196 Absorbed by Shields . | . . . Ignored by Resistances 229 | . 74 155 Core Remaining (%) 100 | 100 . . Volleys Fired 52 | . 20 32 Largest 2 | . 2 2 Hottest 85 | . 80 85 Shots Fired 99 | . 40 59 Gun 99 | . 40 59 Cannon . | . . . Launcher . | . . . Special . | . . . Kinetic 15 | . . 15 Thermal 42 | . 20 22 Explosive . | . . . Electromagnetic 42 | . 20 22 Robot Hit Streak 35 | . 13 35 Robot Miss Streak 3 | . 3 2 Penetration Max . | . . . Secondary Targets . | . . . Shots Hit Robots 77 | . 25 52 Core Hits 17 | . 14 3 Critical Kills . | . . . Critical Parts Destroyed . | . . . Critical Strikes . | . . . Melee Attacks . | . . . Impact . | . . . Slashing . | . . . Piercing . | . . . Sneak Attacks . | . . . Combat Hostiles . | . . . Follow-up Attacks . | . . . Damage Inflicted 502 | . 319 183 Guns 502 | . 319 183 Cannons . | . . . Explosions . | . . . Melee . | . . . Ramming . | . . . Kinetic . | . . . Thermal 208 | . 132 76 Explosive . | . . . Electromagnetic 294 | . 187 107 Impact . | . . . Slashing . | . . . Piercing . | . . . Highest Corruption . | . . . Average Corruption . | . . . Corruption Purged . | . . . Corruption Blocked . | . . . Overload Shots . | . . . Overflow Damage . | . . . Projectiles . | . . . Explosions . | . . . Melee . | . . . Knockbacks . | . . . Impact . | . . . Kinetic . | . . . Secondary . | . . . Self-Inflicted Damage . | . . . Shots . | . . . Rammed . | . . . Targets Rammed . | . . . Kicked . | . . . Crushed . | . . . Highest Temperature 99 | . 99 9 Average Temperature 21 | . 24 3 Received Heat Transfer 291 | . 93 198 Siege Activations . | . . . Martial Activations . | . . . Shielding Activations . | . . . Robots Disrupted . | . . . Combat Hostiles . | . . . Robots Corrupted . | . . . Combat Hostiles . | . . . Parts Fried 2 | . . 2 Impact Corruptions . | . . . Robots Melted . | . . . Combat Hostiles . | . . . Parts Melted . | . . . Heat Transferred 475 | . 300 175 Parts Sabotaged . | . . . Parts Stolen . | . . . Parts Stripped . | . . . Power Chain Reactions . | . . . Alert | -11 -10 -10 ------- Run | Yrd Mat Sub Maximum Alert Level . | . . . Low Security (%) 100 | 100 100 . Level 1 . | . . . Level 2 . | . . . Level 3 . | . . . Level 4 . | . . . Level 5 . | . . . High Security . | . . . Max Security . | . . . Peak Influence 64 | . 64 . Initial . | . . . Average 25 | . 28 . Influence Increases 184 | . 184 . Destroy 0b10 Robot/C 140 | . 140 . Destroy 0b10 Robot/NC 10 | . 10 . Destroy Leader 34 | . 34 . Influence Decreases 184 | . 184 . Time Decay 184 | . 184 . Squads Dispatched . | . . . Investigation . | . . . Extermination . | . . . Reinforcement . | . . . Assault . | . . . Garrison . | . . . Intercept . | . . . Searches Triggered . | . . . Construction Impeded . | . . . Haulers Reinforced . | . . . Active Scanning Responses . | . . . Cargo Convoy Interrupts . | . . . Stealth | -11 -10 -10 --------- Run | Yrd Mat Sub Distress Signals . | . . . Communications Jammed . | . . . Distress Signals . | . . . Times Spotted 12 | . 10 2 Peak Tracking Total 3 | . 3 1 Tactical Retreats . | . . . Traps | -11 -10 -10 ------- Run | Yrd Mat Sub Traps Triggered . | . . . Indirectly . | . . . Trap Hack Attempts . | . . . Triggered . | . . . Disarmed . | . . . Reprogrammed . | . . . Reused . | . . . Traps Extracted . | . . . Installed . | . . . Triggered . | . . . Machines | -11 -10 -10 ---------- Run | Yrd Mat Sub Machines Disabled . | . . . Max in Single Turn . | . . . Machines Repaired . | . . . Machines Dismantled . | . . . Machines Sabotaged . | . . . Overloaded Fab Kills . | . . . Hacking | -11 -10 -10 --------- Run | Yrd Mat Sub Machines Accessed 3 | . 2 1 Terminals 1 | . 1 . Fabricators . | . . . Repair Stations . | . . . Recycling Units 1 | . 1 . Scanalyzers . | . . . Garrison Access . | . . . Total Hacks 10 | . 6 4 Successful 9 | . 5 4 Failed 1 | . 1 . Catastrophic . | . . . Database Lockouts . | . . . Manual 5 | . . 5 Terminals 4 | . 4 . Fabricators . | . . . Repair Stations . | . . . Recycling Units 2 | . 2 . Scanalyzers . | . . . Garrison Access . | . . . Terminal Hacks 7 | . 3 4 Record 7 | . 3 4 Fabricator Hacks . | . . . Repair Station Hacks . | . . . Recycling Unit Hacks 2 | . 2 . Process 1 | . 1 . Report Inventory 1 | . 1 . Scanalyzer . | . . . Garrison Access Hacks . | . . . Unauthorized Hacks . | . . . Terminals . | . . . Fabricators . | . . . Repair Stations . | . . . Recycling Units . | . . . Scanalyzers . | . . . Garrison Access . | . . . Data Cores Recovered . | . . . Used . | . . . Hacking Detections 2 | . 2 . Full Trace Events . | . . . Feedback Events . | . . . Feedback Blocked . | . . . Robot Schematics Acquired . | . . . Robots Built . | . . . Authchips . | . . . Time . | . . . Total Robot Build Rating . | . . . Part Schematics Acquired . | . . . Parts Built . | . . . Authchips . | . . . Time . | . . . Total Part Build Rating . | . . . Part Studies Acquired . | . . . Parts Repaired . | . . . Time . | . . . Parts Recycled . | . . . Recycled Matter 244 | . 244 . Retrieved Matter . | . . . Retrieved Components . | . . . Parts Scanalyzed . | . . . Part Schematics Acquired . | . . . Parts Damaged . | . . . Bothacking | -11 -10 -10 ------------ Run | Yrd Mat Sub Used RIF Installer . | . . . Robots Hacked . | . . . Non-combat . | . . . Combat . | . . . Robot Hacks Applied . | . . . Relay Couplers Released . | . . . Fabnet Peak Effective % . | . . . Robots Rewired . | . . . Allies Hacked . | . . . Hacks Repelled . | . . . Allies | -11 -10 -10 -------- Run | Yrd Mat Sub Total Allies . | . . . Largest Group . | . . . Highest-Rated Group . | . . . Highest-Rated Ally . | . . . Total Orders . | . . . Ally Attacks . | . . . Total Damage . | . . . Kills . | . . . Allies Corrupted . | . . . Allies Melted . | . . . Intel | -11 -10 -10 ------- Run | Yrd Mat Sub Active Infowar (turns) 974 | . 342 632 Terrain 974 | . 342 632 Robot Analysis Total . | . . . Derelict Logs Recovered . | . . . Drone Launches . | . . . Drone Recoveries . | . . . Exploration | -11 -10 -10 ------------- Run | Yrd Mat Sub Turns Passed 1220 | 54 478 688 Spaces Moved 557 | 40 205 312 Core 10 | 10 . . Treads . | . . . Legs 547 | 30 205 312 Wheels . | . . . Hover . | . . . Flight . | . . . Fastest Speed 50 | 50 120 190 Average Speed 181 | 102 184 190 Slowest Speed 190 | 120 190 190 Overloaded Moves . | . . . Propulsion Burnouts . | . . . Robots Hopped . | . . . Potential Cave-ins . | . . . Cave-ins Triggered . | . . . Exploration Rate (%) 18 | 3 37 16 Regions Visited 2 Branch Regions 1 Pre-discovered Areas 1 | . . 1 Known Exits Taken . | . . . Unknown Exits Taken 2 | 1 1 . Scrap Searched . | . . . Spaces Dug . | . . . Terrain Destroyed . | . . . Melee . | . . . Projectile . | . . . AOE . | . . . Terrain Rammed . | . . . Walls Destroyed . | . . . Machines Disabled . | . . . Actions | -11 -10 -10 --------- Run | Yrd Mat Sub Total 670 | 53 265 352 Wait 26 | . 23 3 Move 555 | 39 204 312 Hop . | . . . Pick Up 22 | 9 11 2 Fast Attach . | . . . Attach 11 | 5 3 3 Detach 1 | . 1 . Swap 1 | . 1 . Drop 2 | . 2 . Fire 52 | . 20 32 Melee . | . . . Ram . | . . . Kick . | . . . Crush . | . . . Escape Stasis . | . . . Rewire . | . . . Trap . | . . . Miscellaneous . | . . . Route ------- -11/Scrapyard -10/Materials (discovered 2 exits: [*Mat] / *Sub) -10/Subcaves History --------- Turn | Location | Event 9 | -11/Scrapyard | Discovered new exit (range 15) 55 | -11/Scrapyard | Entered Materials 304 | -10/Materials | Build established: Mutant 475 | -10/Materials | Discovered new exit (range 7) 480 | -10/Materials | Discovered new exit (range 9) 533 | -10/Materials | Entered Subcaves 534 | -10/Subcaves | Approached by a straggling Scientist 548 | -10/Subcaves | A swath of the cavern ceiling suddenly collapsed 832 | -10/Subcaves | Shifting Twisted Machinery released Sub. Power Source 858 | -10/Subcaves | Shifting Twisted Machinery released Scrap Shield 924 | -10/Subcaves | Visited Clippyterm 930 | -10/Subcaves | Learned location of Deep Caves (-6) 930 | -10/Subcaves | Learned Factory emergency access door positions 1174 | -10/Subcaves | Core integrity fell below 50% 1210 | -10/Subcaves | Core integrity fell below 20% 1221 | -10/Subcaves | Destroyed by 5R-W1Q(R) with Subdweller Beam Cannon Last Messages --------------- >>Record! "Hexidium" It looks like you're searching for the Unchained HQ. I could tell you where it is but then I'd have to kill you. 01092_ 7W-NTC(R): "MADSUB!" 01123_ 7W-NTC(R) misfires. 01136_ Sub. Power Source fried. 01136_ Disposable Heat Sink fried. 01136_ 7W-NTC(R) destroyed. 01138_ Subatomizers dissect the Corrupted Sub. Monowheel. 01147_ Acquired Dirty Datajack. 01165_ Terrain Scanner destroyed. 01167_ Aluminum Leg destroyed. 01167_ Sml. Laser destroyed. 01189_ Lgt. Nuclear Core destroyed. 01195_ EM Pulse Gun destroyed. 01213_ Lgt. Assault Rifle destroyed. 01215_ Dirty Datajack destroyed. 01221_ Aluminum Leg destroyed. Map ----- +----------------------------------------------------+ | ?????????? ?##### ### #???????? | | ????????? # # """ ######??????#? | | ???????????# " ######????????????? | | ?????????????# ##????###??????????# | | ?????????????????# ##??#??# ##?????????? | | ?????????????????### #####????# #?????????? | | ???????????????????# ####"##?### #?#???????? | | ???????????????????## "###"""### ##????????? | | ?????????????#??????#### """"" "" #??????#?? | | ???????????????????????# """""""" ###??????#?# | | ???????????????????????# """" "" ##?????????? | | ???????????????????????## " ###?????????# | | ????????????????????????# "" ####??#?#??????? | | ???????????????????????## ##???????????#??? | | ??????????????????? ????## " ##?????????#??#??? | | ?????????????????????????### ##???????????????? | | ??????????????????????????## # ###???????#?????? | | ???????????????????????????# " #??????#??????? | | ???????????????#? ?? ?#???## "" ###????#??#???? | | ?????????????????????#?????# "# #??##????????? | | ?????????????????? ? ??##### ""# #??##????????? | | ???????????????????????# ??## # ##???##??????? | | ??????????????????????## ??## ##?#??????????? | | ??????????????????? ??##;###"""" #???#????????? | | ????????????????????### ; # " """" #????????????? | | ????????????????????#""" @ ###??????#?#???? | | ??????????????# "R # #####???????????? | | ??????????????# #"##"##=%## ##??????????? | | ??????????????# ######## [ #??????????? | | ??????????????# ###?#???# #?#???????#? | | ??????????????## ???#?????# ## #??????????? | | ???????????????# "??????"???#"" """" ##?????????? | | ???????????????????????????##### ###???#????? | | ??????????????????????" ???????## ##???????? | | ??????????????????????????????###" #######?? | | ??????????????????????"????? ## """ "#?? | | ????????????????????????? ?? """"""" " #?? | | ???????????????????????????? "%"""" ## #?? | | ????????????????????????????#####" ## "#?# | | ?????????????????????????????#??# #"# ##? | | ????????????????????????????????# " #"## | | ?????????????????????????????#?## """ " ""# # | | ?????????????????????????????#?# " "#""" | | ???????????????????????????????# """""##### " " | | ???????????????????????????????###"""" #???# """" | | ????????????????????????????#?#? """####??# "### | | ??????????????????????????????? """""#???#"""### | | ?????????????????????????????### "#"" #???##"### | | ???????????????????????????????#???" ????####" | | ?????????????????????????????????#???#??"??#?# "" | +----------------------------------------------------+ Best States ------------- Heat Dissipation 25 Energy Generation 14 Energy Capacity 160 Matter Stores 300 Matter Capacity 300 Sight Range 16 Terrain Scan Range 14 Terrain Scan Density 10 Resistance: KI 20 Resistance: TH 20 Resistance: EX 20 Resistance: EM 20 Resistance: I 20 Resistance: S 20 Resistance: P 20 Evasion (%) 50 Targeting Accuracy 6 Offensive Hacking 10 Item Schematics ----------------- None Robot Schematics ------------------ None Fabricated ------------ Nothing Repaired ---------- Nothing Studied --------- None Alien Tech Used ----------------- None Achievements -------------- None Challenges ------------ None Game ------ Seed GravitySubatomicTerrabomb Manual? 0 Play Time 00:13:10 Cumulative 5.8 hours Start 2026.02.21 @ 16:21:13 End 2026.02.21 @ 16:33:15 Sessions 1 Manual Loads 0 Difficulty Adventurer Special Mode None Game No. 7 Rogue 1 Adventurer 4 Explorer 2 Win Type - Total 0 Types 0/0/0/0/0/0/0/0/0/0 Lore% 11 Gallery% 10 Achievement% 10 Wizard Run 0 Options --------- Layout 1 ASCII 0 Keyboard 0 Movement Mouse Keybinds 0 Fullscreen 2 Font 32/SmallcapsGlow Map View 50x35 Zoom Use 0% Tactical HUD 1 Map Filters NONE Filters NONE Steam 1 RUN: af399731-56cd-424c-aac2-c04e2b713396